bitfinex/quotes_BTCUSD_20250703
["timestamp","ask_amount","ask_price","bid_price","bid_amount"]
[1751548988703,0.001,109510.0,109500.0,1.85410476]
[1751548988909,0.001,109510.0,109500.0,1.79960953]
[1751548989312,0.0004,109530.0,109520.0,0.26000626]
[1751548989451,0.0004,109530.0,109520.0,0.48460626]
[1751548989703,0.0004,109530.0,109520.0,0.51187752]
[1751548989899,0.0004,109530.0,109520.0,0.53932552]
[1751548990502,0.0014,109530.0,109520.0,0.53932552]
[1751548991296,0.0014,109530.0,109520.0,0.51205426]
[1751548992597,0.0014,109530.0,109520.0,0.88657955]
[1751548993187,0.0014,109530.0,109520.0,0.51205426]
[1751548994776,0.0014,109530.0,109520.0,0.88657955]
[1751548995838,0.0014,109530.0,109520.0,0.89592452]
[1751548997024,0.0014,109530.0,109520.0,0.51205426]
[1751548997866,0.0014,109530.0,109520.0,0.56205426]
[1751548998233,0.0014,109530.0,109520.0,0.93657955]
[1751548999525,0.0014,109530.0,109520.0,0.94556453]
[1751548999742,0.0014,109530.0,109520.0,0.57103924]
[1751548999926,0.0014,109530.0,109520.0,0.94556453]
[1751549001307,0.0014,109530.0,109520.0,0.97283579]
[1751549001450,0.0014,109530.0,109520.0,0.94556453]
[1751549001980,0.0014,109530.0,109520.0,0.5983105]
[1751549002208,0.0004,109530.0,109520.0,0.94556453]
[1751549002476,0.0004,109530.0,109520.0,0.97383579]
[1751549002877,0.0004,109530.0,109520.0,0.5993105]
[1751549003087,0.0004,109530.0,109520.0,0.97383579]
[1751549004237,0.0004,109530.0,109520.0,0.5993105]
[1751549004444,0.0004,109530.0,109520.0,0.97383579]
[1751549005964,0.0004,109530.0,109520.0,0.5993105]
[1751549006175,0.0004,109530.0,109520.0,0.97383579]
[1751549012497,0.0004,109530.0,109520.0,0.4115105]
[1751549012701,0.0004,109530.0,109520.0,0.98319579]
[1751549013071,0.0004,109530.0,109520.0,0.60247051]
[1751549013294,0.0004,109530.0,109520.0,0.6524705]
[1751549013465,0.0004,109530.0,109520.0,0.68888915]
[1751549013843,0.0004,109530.0,109520.0,1.06341444]
[1751549015352,0.0004,109530.0,109520.0,1.03614318]
[1751549017010,0.0004,109530.0,109520.0,0.66161789]
[1751549017222,0.0004,109530.0,109520.0,1.03614318]
[1751549019475,0.0004,109530.0,109520.0,1.03634318]
[1751549020026,0.0004,109530.0,109520.0,0.98634319]
[1751549020261,0.0004,109530.0,109520.0,1.03634318]
[1751549021032,0.37492529,109530.0,109520.0,0.32507292]
[1751549021280,0.41922529,109530.0,109520.0,0.53987404]
[1751549021462,0.41922529,109530.0,109520.0,0.58987403]
[1751549021463,0.0447,109530.0,109520.0,0.58987403]
[1751549021671,0.0447,109530.0,109520.0,0.55345538]
[1751549021927,0.0227,109530.0,109520.0,0.36589538]
[1751549022146,0.0004,109530.0,109520.0,0.58987403]
[1751549022349,0.0004,109530.0,109520.0,0.96339932]
[1751549022603,0.0004,109530.0,109520.0,0.9361582]
[1751549022804,0.0014,109530.0,109520.0,0.9778582]
[1751549023445,0.0014,109530.0,109520.0,1.06929513]
[1751549023891,0.0014,109530.0,109520.0,1.12379036]
[1751549024505,0.0014,109530.0,109520.0,1.13995926]
[1751549024932,0.0014,109530.0,109520.0,1.10354061]
[1751549025137,0.0004,109530.0,109520.0,1.13984256]
[1751549025354,0.0014,109530.0,109520.0,1.10354061]
[1751549025775,0.0014,109530.0,109520.0,1.39854061]
[1751549026187,0.0004,109530.0,109520.0,1.39854061]
[1751549026525,0.0004,109530.0,109520.0,1.39954061]
[1751549027842,0.0004,109530.0,109520.0,1.21198061]
[1751549028056,0.0004,109530.0,109520.0,1.44574061]
[1751549033082,0.0004,109530.0,109520.0,1.02947532]
[1751549033474,0.0213,109530.0,109520.0,0.67446508]
[1751549033686,0.98259337,109530.0,109520.0,0.3734414]
[1751549033906,1.4140303,109530.0,109520.0,0.0284414]
[1751549034115,1.4140303,109530.0,109520.0,0.10119999]
[1751549034116,1.32259328,109530.0,109520.0,0.10119999]
[1751549034561,1.33172303,109530.0,109520.0,0.10119999]
[1751549034794,1.34085294,109530.0,109520.0,0.10119999]
[1751549034994,1.52345131,109530.0,109520.0,0.10019999]
[1751549035427,1.52645131,109530.0,109520.0,0.10019999]
[1751549035852,1.45373395,109530.0,109520.0,0.10019999]
[1751549036059,1.27113558,109530.0,109520.0,0.0502]
[1751549036268,1.27113558,109530.0,109520.0,0.10019999]
[1751549036502,1.4354752,109530.0,109520.0,0.0002]
[1751549036709,1.42634554,109530.0,109520.0,0.0002]
[1751549037164,1.41721579,109530.0,109520.0,0.0002]
[1751549038966,1.52319357,109530.0,109520.0,0.0002]
[1751549039184,6.47454357,109530.0,109520.0,0.0002]
[1751549040044,6.84906886,109530.0,109520.0,0.0002]
[1751549040254,6.47454357,109530.0,109520.0,0.0002]
[1751549040484,6.47654357,109530.0,109520.0,0.0002]
[1751549040900,6.48154357,109530.0,109520.0,0.0002]
[1751549044013,6.50896955,109530.0,109520.0,0.0002]
[1751549044445,0.25793514,109510.0,109500.0,0.0002]
[1751549044649,6.37488958,109510.0,109500.0,0.0002]
[1751549045528,6.37688958,109510.0,109500.0,0.0002]
[1751549045738,6.28545265,109510.0,109500.0,0.0002]
[1751549045956,5.91592736,109510.0,109500.0,0.0002]
[1751549046182,6.29045265,109510.0,109500.0,0.0002]
[1751549047065,6.30504389,109510.0,109500.0,0.0002]
[1751549047274,6.30804389,109510.0,109500.0,0.0002]
[1751549047678,6.39948082,109510.0,109500.0,0.0002]
[1751549048456,6.64804431,109510.0,109500.0,0.0002]
[1751549049716,1.69669431,109510.0,109500.0,0.0002]
[1751549049961,6.64804431,109510.0,109500.0,0.0002]
[1751549054954,6.41436431,109510.0,109500.0,0.0002]
[1751549055188,6.27789217,109510.0,109500.0,0.0002]
[1751549055420,1.14858747,109510.0,109500.0,0.0002]
[1751549055614,1.1485873,109510.0,109500.0,0.0002]
[1751549055838,1.34948177,109510.0,109500.0,0.0002]
[1751549056054,1.34035086,109510.0,109500.0,0.0002]
[1751549056473,1.33121986,109510.0,109500.0,0.0002]
[1751549056673,1.70574515,109510.0,109500.0,0.0002]
[1751549056895,0.91498805,109510.0,109500.0,0.0002]
[1751549057098,1.15771963,109510.0,109500.0,0.0002]
[1751549057332,1.34035135,109510.0,109500.0,0.0002]
[1751549058050,1.71487664,109510.0,109500.0,0.0002]
[1751549059042,1.70574556,109510.0,109500.0,0.0002]
[1751549059836,1.77836731,109510.0,109500.0,0.0002]
[1751549060165,1.76010465,109510.0,109500.0,0.0002]
[1751549062810,1.75097307,109510.0,109500.0,0.0002]
[1751549064620,1.67835132,109510.0,109500.0,0.0002]
[1751549065668,0.83055346,109510.0,109500.0,0.0002]
[1751549065876,0.72415346,109510.0,109500.0,0.10024424]
[1751549066095,0.73328437,109510.0,109500.0,0.10024424]
[1751549066288,0.49968437,109510.0,109500.0,0.11722526]
[1751549066493,1.02408437,109510.0,109500.0,0.12635768]
[1751549066717,1.01908437,109510.0,109500.0,0.12635768]
[1751549066890,1.02208437,109510.0,109500.0,0.12635768]
[1751549067122,1.02408437,109510.0,109500.0,0.12635768]
[1751549067695,1.03321537,109510.0,109500.0,0.11722526]
[1751549068057,1.04234645,109510.0,109500.0,0.11722526]
[1751549068215,1.03934645,109510.0,109500.0,0.11722526]
[1751549068423,1.03021537,109510.0,109500.0,0.11722526]
[1751549068645,1.03121537,109510.0,109500.0,0.11722526]
[1751549069680,1.03121537,109510.0,109500.0,0.1172521]
[1751549069833,1.04034653,109510.0,109500.0,0.1172521]
[1751549070429,1.03121537,109510.0,109500.0,0.1172521]
[1751549071369,1.02208437,109510.0,109500.0,0.12638452]
[1751549072012,1.03121553,109510.0,109500.0,0.1172521]
[1751549072212,0.65669024,109510.0,109500.0,0.1172521]
[1751549072416,1.03121553,109510.0,109500.0,0.1172521]
[1751549072775,1.03121553,109510.0,109500.0,0.117252]
[1751549073121,1.03121545,109510.0,109500.0,0.117252]
[1751549074907,1.03121545,109510.0,109500.0,0.12362832]
[1751549075634,1.0403467,109510.0,109500.0,0.08212832]
[1751549075843,1.0403467,109510.0,109500.0,0.08214372]
[1751549076049,1.09555803,109510.0,109500.0,0.08214372]
[1751549076200,1.08642661,109510.0,109500.0,0.08214372]
[1751549076403,1.08642661,109510.0,109500.0,0.12544372]
[1751549076633,1.09555802,109510.0,109500.0,0.08214372]
[1751549078309,1.27819041,109510.0,109500.0,0.0257674]
[1751549078522,1.69099431,109510.0,109500.0,0.0257674]
[1751549078742,6.64234431,109510.0,109500.0,0.00875964]
[1751549078958,6.79234431,109510.0,109500.0,0.00875964]
[1751549080236,6.79234431,109510.0,109500.0,0.0002]
[1751549080439,6.88378124,109510.0,109500.0,0.0002]
[1751549080647,6.91117742,109510.0,109500.0,0.0002]
[1751549081224,7.06117742,109510.0,109500.0,0.0002]
[1751549082409,7.06117489,109510.0,109500.0,0.0002]
[1751549082850,7.28069489,109510.0,109500.0,0.0002]
[1751549083038,7.31712975,109510.0,109500.0,0.0002]
[1751549083304,7.28069489,109510.0,109500.0,0.0002]
[1751549086623,5.4976715,109500.0,109490.0,0.0002]
[1751549086843,7.03370123,109500.0,109490.0,0.0002]
[1751549087066,6.65917594,109500.0,109490.0,0.0002]
[1751549087274,6.68664594,109500.0,109490.0,0.0002]
[1751549087894,6.68764594,109500.0,109490.0,0.0002]
[1751549088103,7.06217123,109500.0,109490.0,0.0002]
[1751549088327,7.06417123,109500.0,109490.0,0.0002]
[1751549089155,6.68964594,109500.0,109490.0,0.0002]
[1751549092741,6.71703959,109500.0,109490.0,0.0002]
[1751549093261,6.68964594,109500.0,109490.0,0.0002]
[1751549093714,6.57455901,109500.0,109490.0,0.0002]
[1751549093933,6.32661816,109500.0,109490.0,0.0002]
[1751549094141,6.56001816,109500.0,109490.0,0.0416]
[1751549094356,6.57455901,109500.0,109490.0,0.0416]
[1751549095332,6.34115901,109500.0,109490.0,0.0204]
[1751549095557,6.66599594,109500.0,109490.0,0.0204]
[1751549095779,5.47556405,109500.0,109490.0,0.0204]
[1751549095990,5.67193579,109500.0,109490.0,0.0204]
[1751549096332,6.02106787,109500.0,109490.0,0.0204]
[1751549096751,1.01446571,109500.0,109490.0,0.0204]
[1751549096962,1.02359771,109500.0,109490.0,0.0204]
[1751549098126,1.03272987,109500.0,109490.0,0.0204]
[1751549098374,1.02359762,109500.0,109490.0,0.0415]
[1751549099003,1.01446571,109500.0,109490.0,0.0415]
[1751549099383,1.02359779,109500.0,109490.0,0.0415]
[1751549099633,1.01446571,109500.0,109490.0,0.0415]
[1751549099831,1.03272978,109500.0,109490.0,0.0415]
[1751549099964,1.0327297,109500.0,109490.0,0.0415]
[1751549100160,1.00533388,109500.0,109490.0,0.0415]
[1751549100370,1.00533405,109500.0,109490.0,0.0915]
[1751549100586,1.00533397,109500.0,109490.0,0.10063325]
[1751549100978,0.99620222,109500.0,109490.0,0.30156442]
[1751549101183,0.62167693,109500.0,109490.0,0.30156458]
[1751549101390,0.99620222,109500.0,109490.0,0.31069758]
[1751549101978,0.43443693,109500.0,109490.0,0.31982975]
[1751549102186,0.62167693,109500.0,109490.0,0.31982975]
[1751549102601,0.62167693,109500.0,109490.0,0.31069716]
[1751549102800,0.62167693,109500.0,109490.0,0.31983008]
[1751549103005,0.62167693,109500.0,109490.0,0.31069725]
[1751549103209,0.99620222,109500.0,109490.0,0.31069725]
[1751549103422,0.99620222,109500.0,109490.0,0.31983008]
[1751549103555,0.99620222,109500.0,109490.0,0.31069725]
[1751549104321,0.99620222,109500.0,109490.0,0.31983008]
[1751549104620,0.99620222,109500.0,109490.0,0.28329825]
[1751549104786,1.00533397,109500.0,109490.0,0.28329833]
[1751549105105,1.00533397,109500.0,109490.0,0.0915]
[1751549105341,1.00533397,109500.0,109490.0,0.10063325]
[1751549105782,1.00533397,109500.0,109490.0,0.0915]
[1751549106227,1.00533397,109500.0,109490.0,0.10063325]
[1751549106372,1.00533397,109500.0,109490.0,0.0915]
[1751549107205,1.0144658,109500.0,109490.0,0.0915]
[1751549108559,1.00533388,109500.0,109490.0,0.28329816]
[1751549108794,0.43443693,109500.0,109490.0,0.30156408]
[1751549109013,0.43443693,109500.0,109490.0,0.36069682]
[1751549109014,0.53016,109500.0,109490.0,0.36069682]
[1751549109233,0.53016,109500.0,109490.0,0.33329815]
[1751549109455,0.53016,109500.0,109490.0,0.34243115]
[1751549109648,0.52816,109500.0,109490.0,0.34243115]
[1751549109924,0.52716,109500.0,109490.0,0.35156407]
[1751549110157,0.52716,109500.0,109490.0,0.3616969]
[1751549111063,0.52716,109500.0,109490.0,0.35256407]
[1751549111723,0.90168529,109500.0,109490.0,0.36169682]
[1751549112151,0.52716,109500.0,109490.0,0.33429815]
[1751549112381,0.52716,109500.0,109490.0,0.34343115]
[1751549112783,0.52716,109500.0,109490.0,0.3616969]
[1751549113284,0.52716,109500.0,109490.0,0.35256407]
[1751549113464,0.52716,109500.0,109490.0,0.3616969]
[1751549113698,0.52716,109500.0,109490.0,0.35256407]
[1751549113908,0.52716,109500.0,109490.0,0.33429815]
[1751549114137,0.90168529,109500.0,109490.0,0.34343098]
[1751549114345,0.90168529,109500.0,109490.0,0.34343107]
[1751549114687,0.90168529,109500.0,109490.0,0.3525639]
[1751549115376,0.90168529,109500.0,109490.0,0.36169657]
[1751549116180,0.90168529,109500.0,109490.0,0.3525639]
[1751549116400,0.90168529,109500.0,109490.0,0.36169665]
[1751549116594,0.90168529,109500.0,109490.0,0.37082932]
[1751549117212,0.90168529,109500.0,109490.0,0.36169665]
[1751549117462,0.90168529,109500.0,109490.0,0.3525639]
[1751549117630,0.90168529,109500.0,109490.0,0.37082932]
[1751549118960,0.52716,109500.0,109490.0,0.37082932]
[1751549119206,0.90168529,109500.0,109490.0,0.27516507]
[1751549119419,1.37677917,109500.0,109490.0,0.14249999]
[1751549119631,1.00225388,109500.0,109490.0,0.14339999]
[1751549119799,1.01138571,109500.0,109490.0,0.14339999]
[1751549120226,1.01138571,109500.0,109490.0,0.0934]
[1751549120466,1.01138571,109500.0,109490.0,0.12139999]
[1751549120678,1.00225388,109500.0,109490.0,0.33519832]
[1751549121089,1.01138563,109500.0,109490.0,0.33519832]
[1751549121323,1.01138563,109500.0,109490.0,0.15253324]
[1751549121532,1.01138563,109500.0,109490.0,0.15273324]
[1751549122019,1.01178563,109500.0,109490.0,0.15273324]
[1751549122551,1.01178563,109500.0,109490.0,0.16186641]
[1751549122759,1.00265388,109500.0,109490.0,0.34453149]
[1751549123873,0.99352222,109500.0,109490.0,0.34453149]
[1751549124307,0.99352222,109500.0,109490.0,0.33539832]
[1751549124513,0.99352222,109500.0,109490.0,0.34453149]
[1751549124705,0.99352222,109500.0,109490.0,0.15273324]
[1751549125096,1.00265397,109500.0,109490.0,0.14359999]
[1751549125716,1.00265397,109500.0,109490.0,0.15273324]
[1751549126498,1.00265397,109500.0,109490.0,0.14359999]
[1751549126833,1.00265397,109500.0,109490.0,0.15273324]
[1751549127037,1.00265397,109500.0,109490.0,0.34453149]
[1751549127158,1.00265388,109500.0,109490.0,0.15273324]
[1751549127366,1.00265388,109500.0,109490.0,0.32253149]
[1751549127568,1.00265388,109500.0,109490.0,0.34413149]
[1751549127966,1.01178571,109500.0,109490.0,0.0932]
[1751549128354,1.01178571,109500.0,109490.0,0.12159999]
[1751549128780,1.00265388,109500.0,109490.0,0.31339832]
[1751549129200,0.62812859,109500.0,109490.0,0.13073324]
[1751549129410,1.01178563,109500.0,109490.0,0.13073324]
[1751549129627,0.99352222,109500.0,109490.0,0.33589824]
[1751549129844,1.00265388,109500.0,109490.0,0.33589824]
[1751549130060,1.00265388,109500.0,109490.0,0.34503132]
[1751549130268,0.99352222,109500.0,109490.0,0.35416432]
[1751549130478,0.99352222,109500.0,109490.0,0.34503132]
[1751549132223,0.99352222,109500.0,109490.0,0.33589824]
[1751549132430,0.99352222,109500.0,109490.0,0.34503124]
[1751549132569,0.99352222,109500.0,109490.0,0.33589824]
[1751549132970,1.00265388,109500.0,109490.0,0.34503132]
[1751549133184,0.99352222,109500.0,109490.0,0.34503132]
[1751549134423,0.99352222,109500.0,109490.0,0.33589824]
[1751549134599,0.99352222,109500.0,109490.0,0.35416432]
[1751549134801,0.99336222,109500.0,109490.0,0.35416432]
[1751549135012,0.99336222,109500.0,109490.0,0.36329724]
[1751549135255,0.61883693,109500.0,109490.0,0.33589824]
[1751549135453,0.99336222,109500.0,109490.0,0.35416432]
[1751549136349,0.99336222,109500.0,109490.0,0.34503132]
[1751549136588,0.99336222,109500.0,109490.0,0.35416432]
[1751549136810,0.99336222,109500.0,109490.0,0.36329724]
[1751549137010,0.99336222,109500.0,109490.0,0.37243007]
[1751549137746,0.99336222,109500.0,109490.0,0.37242957]
[1751549137946,0.99336222,109500.0,109490.0,0.3632969]
[1751549138153,0.99336222,109500.0,109490.0,0.35416407]
[1751549138472,0.99336222,109500.0,109490.0,0.3632969]
[1751549139218,0.99336222,109500.0,109490.0,0.35416407]
[1751549139593,0.99336222,109500.0,109490.0,0.3632969]
[1751549139803,0.61883693,109500.0,109490.0,0.37242965]
[1751549140132,0.61883693,109500.0,109490.0,0.37242924]
[1751549140857,0.61883693,109500.0,109490.0,0.36329657]
[1751549140997,0.99336222,109500.0,109490.0,0.34503099]
[1751549141227,0.99336222,109500.0,109490.0,0.33589832]
[1751549141425,0.99336222,109500.0,109490.0,0.12159999]
[1751549141634,0.99336222,109500.0,109490.0,0.13073316]
[1751549142037,1.00249397,109500.0,109490.0,0.13073324]
[1751549142242,1.00249397,109500.0,109490.0,0.12159999]
[1751549142418,0.99336222,109500.0,109490.0,0.13073316]
[1751549142618,0.99336222,109500.0,109490.0,0.31339824]
[1751549142820,0.99336222,109500.0,109490.0,0.32253132]
[1751549143292,0.99328222,109500.0,109490.0,0.32253132]
[1751549143915,0.99328222,109500.0,109490.0,0.33166432]
[1751549144094,0.99328222,109500.0,109490.0,0.32253132]
[1751549144472,0.99328222,109500.0,109490.0,0.33166432]
[1751549144670,0.99328222,109500.0,109490.0,0.31339824]
[1751549145002,1.00241405,109500.0,109490.0,0.12159999]
[1751549145197,0.99328222,109500.0,109490.0,0.12159999]
[1751549145574,0.99328222,109500.0,109490.0,0.33166457]
[1751549146235,0.99328222,109500.0,109490.0,0.32253149]
[1751549146456,1.00241388,109500.0,109490.0,0.12159999]
[1751549146674,1.01154571,109500.0,109490.0,0.10119999]
[1751549147304,1.01154563,109500.0,109490.0,0.10119999]
[1751549147507,1.02067754,109500.0,109490.0,0.10119999]
[1751549148279,1.01154563,109500.0,109490.0,0.10119999]
[1751549148482,1.01154563,109500.0,109490.0,0.11033324]
[1751549149797,1.00241388,109500.0,109490.0,0.11946641]
[1751549150238,1.00241388,109500.0,109490.0,0.11033324]
[1751549150485,1.00241388,109500.0,109490.0,0.13113324]
[1751549150686,1.00241388,109500.0,109490.0,0.14026641]
[1751549151242,1.01154563,109500.0,109490.0,0.12199999]
[1751549151446,1.02067763,109500.0,109490.0,0.12199999]
[1751549151685,1.02067754,109500.0,109490.0,0.12199999]
[1751549151891,1.01154563,109500.0,109490.0,0.12199999]
[1751549152273,1.01154563,109500.0,109490.0,0.13113324]
[1751549153127,1.02067746,109500.0,109490.0,0.12199999]
[1751549153534,1.01154563,109500.0,109490.0,0.12239999]
[1751549153736,1.01154563,109500.0,109490.0,0.13153324]
[1751549153860,1.01154563,109500.0,109490.0,0.12239999]
[1751549154082,1.01154563,109500.0,109490.0,0.0724]
[1751549154494,1.02067754,109500.0,109490.0,0.12239999]
[1751549155059,1.01154563,109500.0,109490.0,0.12239999]
[1751549155268,1.0742097,109500.0,109490.0,0.05119999]
[1751549155436,1.07420962,109500.0,109490.0,0.05119999]
[1751549156431,1.08334187,109500.0,109490.0,0.05119999]
[1751549157418,1.06094187,109500.0,109490.0,0.05119999]
[1751549157772,1.06094187,109500.0,109490.0,0.0012]
[1751549157981,1.06094187,109500.0,109490.0,0.05119999]
[1751549158421,1.02067754,109500.0,109490.0,0.05119999]
[1751549158636,1.01154563,109500.0,109490.0,0.14419999]
[1751549158852,1.01154571,109500.0,109490.0,0.14419999]
[1751549159124,1.00241388,109500.0,109490.0,0.14419999]
[1751549159326,1.01154571,109500.0,109490.0,0.14419999]
[1751549160193,1.01154571,109500.0,109490.0,0.15333324]
[1751549160434,1.00241388,109500.0,109490.0,0.15333324]
[1751549160651,1.01154571,109500.0,109490.0,0.14419999]
[1751549160856,1.01154571,109500.0,109490.0,0.12219999]
[1751549161501,1.00241388,109500.0,109490.0,0.12219999]
[1751549161731,0.80636222,109500.0,109490.0,0.34503149]
[1751549161968,0.61867693,109500.0,109490.0,0.35416449]
[1751549162180,1.66920933,109500.0,109490.0,0.0512]
[1751549162386,1.49802851,109500.0,109490.0,0.0512]
[1751549162569,1.51842851,109500.0,109490.0,0.10119999]
[1751549162819,1.49802801,109500.0,109490.0,0.10119999]
[1751549163064,1.00233388,109500.0,109490.0,0.10119999]
[1751549163269,0.99320222,109500.0,109490.0,0.33569815]
[1751549163476,0.61867693,109500.0,109490.0,0.33569815]
[1751549163677,0.61867693,109500.0,109490.0,0.34483115]
[1751549163797,0.61867693,109500.0,109490.0,0.32656507]
[1751549164006,0.62780859,109500.0,109490.0,0.33569824]
[1751549164202,0.62780859,109500.0,109490.0,0.14389999]
[1751549164422,1.01146571,109500.0,109490.0,0.14389999]
[1751549164775,1.01146571,109500.0,109490.0,0.12239999]
[1751549165210,1.00229388,109500.0,109490.0,0.12239999]
[1751549165419,0.99316222,109500.0,109490.0,0.32333149]
[1751549165640,1.00229388,109500.0,109490.0,0.31419832]
[1751549166468,1.01142571,109500.0,109490.0,0.12239999]
[1751549166666,1.01142571,109500.0,109490.0,0.13153324]
[1751549166928,1.03362571,109500.0,109490.0,0.10119999]
[1751549167144,1.04275779,109500.0,109490.0,0.10119999]
[1751549167357,1.52018793,109500.0,109490.0,0.10119999]
[1751549167567,1.14566264,109500.0,109490.0,0.10119999]
[1751549167772,1.12506264,109500.0,109490.0,0.10119999]
[1751549167979,1.13419464,109500.0,109490.0,0.10119999]
[1751549169182,1.12506264,109500.0,109490.0,0.10119999]
[1751549169414,1.01142571,109500.0,109490.0,0.10119999]
[1751549170018,1.02968996,109500.0,109490.0,0.10119999]
[1751549170258,1.02055771,109500.0,109490.0,0.0512]
[1751549170421,1.02968987,109500.0,109490.0,0.10119999]
[1751549171382,1.0388222,109500.0,109490.0,0.10119999]
[1751549171819,1.36608887,109500.0,109490.0,0.10119999]
[1751549172253,0.43183693,109500.0,109490.0,0.31319824]
[1751549172474,0.61859693,109500.0,109490.0,0.35306424]
[1751549172912,0.96949291,109500.0,109490.0,0.36219707]
[1751549173374,0.78273291,109500.0,109490.0,0.36219707]
[1751549173597,0.61859693,109500.0,109490.0,0.37132982]
[1751549173802,0.61859693,109500.0,109490.0,0.36219707]
[1751549174016,0.61859693,109500.0,109490.0,0.35306424]
[1751549174227,0.61859693,109500.0,109490.0,0.36219707]
[1751549174474,0.61859693,109500.0,109490.0,0.35306424]
[1751549175095,0.61859693,109500.0,109490.0,0.34393132]
[1751549175304,0.61859693,109500.0,109490.0,0.33479824]
[1751549175540,0.61859693,109500.0,109490.0,0.34393124]
[1751549176030,0.61859693,109500.0,109490.0,0.35306416]
[1751549176634,0.61859693,109500.0,109490.0,0.36219691]
[1751549176840,0.61859693,109500.0,109490.0,0.37132958]
[1751549177045,0.52716,109500.0,109490.0,0.37132958]
[1751549177835,0.52716,109500.0,109490.0,0.35306416]
[1751549178044,0.52716,109500.0,109490.0,0.36219691]
[1751549178981,0.3404,109500.0,109490.0,0.36219699]
[1751549179186,0.52716,109500.0,109490.0,0.35306416]
[1751549179641,0.52716,109500.0,109490.0,0.36219699]
[1751549179796,0.3404,109500.0,109490.0,0.36219699]
[1751549179997,0.52712,109500.0,109490.0,0.36219699]
[1751549180201,0.52712,109500.0,109490.0,0.35306416]
[1751549180405,0.52712,109500.0,109490.0,0.36219699]
[1751549180607,0.52712,109500.0,109490.0,0.35306416]
[1751549181283,0.52712,109500.0,109490.0,0.36219699]
[1751549181641,0.52712,109500.0,109490.0,0.35306416]
[1751549182662,0.52712,109500.0,109490.0,0.36219683]
[1751549183007,0.52712,109500.0,109490.0,0.36219699]
[1751549183183,0.52712,109500.0,109490.0,0.35306416]
[1751549183419,0.52712,109500.0,109490.0,0.34393124]
[1751549183632,0.3404,109500.0,109490.0,0.34393124]
[1751549183841,0.52712,109500.0,109490.0,0.35306416]
[1751549184826,0.52712,109500.0,109490.0,0.34393124]
[1751549185031,0.52712,109500.0,109490.0,0.33479824]
[1751549185263,0.90129944,109500.0,109490.0,0.33479824]
[1751549185679,0.90129944,109500.0,109490.0,0.34393132]
[1751549185890,0.90129944,109500.0,109490.0,0.33479824]
[1751549186088,0.90129944,109500.0,109490.0,0.34393132]
[1751549186739,0.90129944,109500.0,109490.0,0.35306432]
[1751549187908,0.90129944,109500.0,109490.0,0.34393132]
[1751549188931,0.90129944,109500.0,109490.0,0.35306432]
[1751549189262,0.90129944,109500.0,109490.0,0.34393132]
[1751549189470,0.90129944,109500.0,109490.0,0.33479824]
[1751549189897,0.90129944,109500.0,109490.0,0.34393132]
[1751549190741,0.90129944,109500.0,109490.0,0.33479824]
[1751549191145,0.90129944,109500.0,109490.0,0.34393132]
[1751549191570,0.90129944,109500.0,109490.0,0.35306432]
[1751549192292,0.90129944,109500.0,109490.0,0.34393132]
[1751549193431,0.9104311,109500.0,109490.0,0.33479824]
[1751549193843,0.87796052,109500.0,109490.0,0.33479824]
[1751549194058,0.0004,109500.0,109490.0,0.70390435]
[1751549194274,0.0004,109500.0,109490.0,0.35306383]
[1751549194524,0.0004,109500.0,109490.0,0.70390435]
[1751549195398,0.0004,109500.0,109490.0,0.70290435]
[1751549195824,0.0004,109500.0,109490.0,0.89358435]
[1751549196475,0.0004,109500.0,109490.0,0.89558435]
[1751549197810,0.0004,109500.0,109490.0,0.91259027]
[1751549198024,0.0004,109500.0,109490.0,0.93580191]
[1751549198239,0.0004,109500.0,109490.0,0.56174975]
[1751549198477,0.0004,109500.0,109490.0,0.93580191]
[1751549198917,0.0004,109500.0,109490.0,1.02723884]
[1751549203417,0.0004,109500.0,109490.0,1.32223884]
[1751549205884,0.0004,109500.0,109490.0,1.34968984]
[1751549206317,0.0004,109500.0,109490.0,0.97563768]
[1751549206515,0.0004,109500.0,109490.0,1.34968984]
[1751549211458,0.0004,109500.0,109490.0,1.16300984]
[1751549211665,0.0004,109500.0,109490.0,0.62592076]
[1751549211872,0.37445216,109500.0,109490.0,0.76486976]
[1751549212075,0.0004,109500.0,109490.0,0.81486975]
[1751549213945,0.37445216,109500.0,109490.0,0.57826976]
[1751549214248,0.37445216,109500.0,109490.0,0.36820592]
[1751549214249,0.42488391,109500.0,109490.0,0.36820592]
[1751549214615,1.52983636,109500.0,109490.0,0.02320592]
[1751549214822,1.55737278,109500.0,109490.0,0.02320592]
[1751549215033,1.55737278,109500.0,109490.0,0.0562]
[1751549215440,1.55737278,109500.0,109490.0,0.0542]
[1751549215641,1.55737278,109500.0,109490.0,0.0512]
[1751549215878,1.55737278,109500.0,109490.0,0.0532]
[1751549216081,1.55737278,109500.0,109490.0,0.0512]
[1751549216348,1.55737278,109500.0,109490.0,0.0502]
[1751549216547,1.55737278,109500.0,109490.0,0.0002]
[1751549217053,1.55737278,109500.0,109490.0,0.0012]
[1751549217751,6.67326363,109500.0,109490.0,0.0012]
[1751549218602,6.67526363,109500.0,109490.0,0.0012]
[1751549218877,6.67526363,109500.0,109490.0,0.0002]
[1751549219121,6.69813665,109500.0,109490.0,0.0002]
[1751549222435,7.07218881,109500.0,109490.0,0.0002]
[1751549223643,6.69813665,109500.0,109490.0,0.0002]
[1751549225180,7.07218881,109500.0,109490.0,0.0002]
[1751549225342,6.69813665,109500.0,109490.0,0.0002]
[1751549227406,6.63046363,109500.0,109490.0,0.0002]
[1751549227661,5.68874059,109500.0,109490.0,0.0002]
[1751549227874,6.60894406,109500.0,109490.0,0.0002]
[1751549228173,6.62348491,109500.0,109490.0,0.0002]
[1751549230540,6.39104491,109500.0,109490.0,0.0002]
[1751549230706,0.73413368,109500.0,109490.0,0.0002]
[1751549230929,0.71046092,109500.0,109490.0,0.0502]
[1751549231371,1.05959283,109500.0,109490.0,0.0502]
[1751549231567,0.68554067,109500.0,109490.0,0.0502]
[1751549231781,1.05959283,109500.0,109490.0,0.0502]
[1751549232190,1.01379292,109500.0,109490.0,0.0502]
[1751549232418,1.022925,109500.0,109490.0,0.0502]
[1751549232769,1.01379292,109500.0,109490.0,0.0502]
[1751549233264,1.02292517,109500.0,109490.0,0.0502]
[1751549233585,1.01379292,109500.0,109490.0,0.0502]
[1751549233969,1.00466092,109500.0,109490.0,0.0502]
[1751549234212,1.02292508,109500.0,109490.0,0.0502]
[1751549234800,0.83628508,109500.0,109490.0,0.0502]
[1751549235001,1.02292508,109500.0,109490.0,0.0502]
[1751549235249,0.83628508,109500.0,109490.0,0.0502]
[1751549235468,1.00466092,109500.0,109490.0,0.0502]
[1751549235678,1.00466092,109500.0,109490.0,0.0714]
[1751549235885,0.83628499,109500.0,109490.0,0.0714]
[1751549236121,1.02292499,109500.0,109490.0,0.0714]
[1751549236336,1.01379283,109500.0,109490.0,0.0714]